{"text_format":"2","workbook":"xlsx","n_sheets":1,"sheets":["Munka1"],"not_rendered":{"charts":0,"images":0,"macros":0,"external_links":0,"defined_names":0,"comments":0,"pivot_tables":0},"unopened":[],"bounds":{"document_bytes":16777216,"sheet_cells":100000,"run_cost":"one","rows_first":2000,"rows_last":500,"rows_between":2000,"halvings":0,"cell_chars":16384,"cell_head_chars":4096},"cells_cut":0,"cells_raw":0,"read":"whole","date_system":"1900"}

{"sheet":"Munka1","index":0,"n_rows":32,"n_cols":7,"rows_kept":32,"cut":false,"hidden":false,"merged":[[30,0,30,6],[31,0,31,6]]}
["Vegyszerek és labor fogyóanyagok (kérjük at alábbi táblázatot ajánlati ár tekintetében kitöltve csatolni ajánlatához)"]
["megnevezés","cikkszám","darab "," nettó e (db) ","nettó össz","áfa %","bruttó"]
["Anti-GAPDH antibody, Mouse monoclonal","G8795-100UL",1,0,{"$f":"PRODUCT(C3:D3)","v":0},27,{"$f":"C3*D3*1.27","v":0}]
["Aprotinin ","A6279-5ml",1,0,0,27,{"$f":"C4*D4*1.27","v":0}]
["D-glucose 6-phosphate sodium salt","G-7879-1G",1,0,0,27,0]
["Eppendorf pipettahegy  0,1-10 ul, átlátszó, 1000 db/cs","Z640069-1000EA",3,0,0,27,0]
["Eppendorf pipettahegy  0,1-20 ul, átlátszó, 1000 db/cs","Z640077-1000EA",3,0,0,27,0]
["Eppendorf pipettahegy  2-200 ul,sárga, 1000 db/cs","Z640093-1000EA",9,0,0,27,0]
["Eppendorf pipettahegy 0,5-10 ml, ömlesztett 2x100db, átlátszó, 165mm hosszú hegy","Z666564-200EA",3,0,0,27,0]
["Eppendorf pipettahegy 100-5000ul ömlesztett 5X100db, átlátszó, 120mm hosszú hegy","Z640158-500EA",6,0,0,27,0]
["Eppendorf pipettahegy 20-300ul ömlesztett, sárga 1000 db/cs","Z640107-1000EA",5,0,0,27,0]
["Eppendorf pipettahegy 50-1000ul ömlesztett 2x500db, kék","Z640115-1000EA",6,0,0,27,0]
["Eppendorf® Safe-Lock mikro centrifugacső, 2 ml, amber","T2920-1000EA",1,0,0,27,0]
["Fluoromount™ Aqueous Mounting Medium","F4680-25ML",1,0,0,27,0]
["Glucose-6-phosphate Dehydrogenase from baker's yeast (S. cerevisiae)","G4134-100UN",1,0,0,27,0]
["Immobilon Western Chemiluminescent HRP Substrate","WBKLS0100",2,0,0,27,0]
["Leupeptin","11017101001, 5 mg",1,0,0,27,0]
["leupeptin "," L2884-5mg",1,0,0,27,0]
["mikro centrifugacsövek 2,0 ml","Z317225-100EA",3,0,0,27,0]
["mikro centrifugacsövek, 1,5 ml, 3810X 1000 db/cs","Z606340-1000EA",5,0,0,27,0]
["Normal goat serum","G9023-10ML",2,0,0,27,0]
["Percoll® PH 8.5-9.5 (20 DEGREE C)","P1644-100 ml",3,0,0,27,0]
["PICRYLSULFONIC ACID SOLUTION","92822-5ML ",1,0,0,27,0]
["RIPA Lysis Buffer, 10X","20-188",2,0,0,27,0]
["Sigma 7-9","T1378-1KG",1,0,0,27,0]
["Streptozocin","S0130-1G",1,0,0,27,0]
["TWEEN-20 ","P-7949-100ml",1,0,0,27,0]
["β-nicotinamide adenine dinucleotide 2'-phosphate reduced tetrasodium salt hydrate (NADPH)","N1630-100mg",1,0,0,27,0]
[null,null,null,"összesen:",{"$f":"SUM(E3:E28)","v":0},null,{"$f":"SUM(G3:G28)","v":0}]
[]
["A kiírt tételekre csak együttes ajánlat tehető, az ajánlatkérő részajánlatot nem értékel, ajánlattevőnek minden, a felhívásban részletezett termékre és tartozékra ajánlatot kell adnia."]
["Kérjük, hogy csak a specifikációban részletezett termékre (amennyiben meg van jelölve, különös figyelemmel gyártóra, gyártói kódokra, típusra és kiszerelésre) nyújtsanak be ajánlatot. Helyettesítő terméket nem fogadunk el."]